[Event "German Bundesliga 2023-24"]
[Site "Germany"]
[Date "2024.03.16"]
[Round "12.8"]
[White "Lutz, Ruben"]
[Black "Buhmann, Rainer"]
[Result "1/2-1/2"]
[ECO "D55"]
[WhiteElo "2250"]
[BlackElo "2568"]
[Annotator "RC"]
[PlyCount "80"]
[EventDate "2023.10.20"]
[EventType "team-tourn"]
[EventCountry "GER"]
[SourceTitle "playchess.com"]
[Source "ChessBase"]
[SourceQuality "1"]
[TimeControl "40/6000+30:3000+30"]

1. d4 {[%emt 0:00:04]} d5 {[%emt 0:00:08]} 2. c4 {[%emt 0:00:08]} e6 {[%emt 0:00:06]} 3. Nf3 {[%emt 0:00:07]} Nf6 {[%emt 0:00:09]} 4. Nc3 {[%emt 0:00:12]} Be7 {[%emt 0:00:20]} 5. Bg5 {[%emt 0:00:18]} O-O {[%emt 0:00:47]} 6. e3 {[%emt 0:00:10]} b6 {[%emt 0:00:26]} 7. h4 {[%emt 0:00:16]} Bb7 {[%emt 0:07:51]} 8. h5 {[%emt 0:00:05]} Ne4 {[%emt 0:06:07]} 9. Bxe7 {[%emt 0:07:36]} Qxe7 {[%emt 0:00:15]} 10. Bd3 {[%emt 0:00:30]} Nxc3 {[%emt 0:09:01]} 11. bxc3 {[%emt 0:00:05]} dxc4 {[%emt 0:00:41]} 12. Bxc4 {[%emt 0:00:50]} Nd7 {[%emt 0:01:12]} 13. Qc2 {[%emt 0:15:53]} c5 {[%emt 0:07:13]} 14. Bd3 {[%emt 0:03:23]} h6 {[%emt 0:08:18]} 15. e4 {[%emt 0:14:08]} Rac8 {[%emt 0:05:48]} 16. Qd2 {[%emt 0:06:36]} cxd4 {[%emt 0:09:23]} 17. cxd4 {[%emt 0:00:05]} Qa3 {[%emt 0:01:25]} 18. O-O {[%emt 0:14:23]} Nf6 {[%emt 0:11:05]} 19. Rfe1 {[%emt 0:01:57]} Rc3 {[%emt 0:02:55]} 20. Rad1 {[%emt 0:08:25]} Nxh5 {[%emt 0:06:12]} 21. d5 {[%emt 0:07:18]} exd5 {[%emt 0:03:08]} 22. Nd4 {[%emt 0:03:01]} Rxd3 {[%emt 0:12:09]} 23. Qxd3 {[%emt 0:00:05]} Qxd3 {[%emt 0:00:36]} 24. Rxd3 {[%emt 0:00:02]} dxe4 {[%emt 0:00:31]} 25. Rc3 {[%emt 0:01:02]} Bd5 {[%emt 0:04:09]} 26. a4 {[%emt 0:04:59]} Kh7 {[%emt 0:01:46]} 27. Rc7 {[%emt 0:04:36]} a6 {[%emt 0:00:23]} 28. Rb1 {[%emt 0:01:04]} b5 {[%emt 0:02:12]} 29. axb5 {[%emt 0:07:06]} axb5 {[%emt 0:00:05]} 30. Rxb5 {[%emt 0:00:01]} Nf6 {[%emt 0:00:33]} 31. Rb6 {[%emt 0:01:26]} Rd8 {[%emt 0:03:02]} 32. Nf5 {[%emt 0:03:08]} Ra8 {[%emt 0:03:13]} 33. Rb1 {[%emt 0:01:59]} Be6 {[%emt 0:01:09]} 34. Nd6 {[%emt 0:02:08]} Nd5 {[%emt 0:02:39]} 35. Rc5 {[%emt 0:01:44]} e3 {[%emt 0:00:47]} 36. fxe3 {[%emt 0:00:45]} Nxe3 {[%emt 0:00:18]} 37. Re1 {[%emt 0:00:46]} Nd5 {[%emt 0:01:39]} 38. Rd1 {[%emt 0:01:28]} Ne3 {[%emt 0:00:34]} 39. Re1 {[%emt 0:00:14]} Nd5 {[%emt 0:00:39]} 40. Rd1 {[%emt 0:01:02]} Ne3 {[%emt 0:00:49]} 1/2-1/2

[Event "German Bundesliga 2023-24"]
[Site "Germany"]
[Date "2024.03.16"]
[Round "12.9"]
[White "Navara, David"]
[Black "Horvath, Dominik"]
[Result "1-0"]
[ECO "B13"]
[WhiteElo "2679"]
[BlackElo "2540"]
[Annotator "TA"]
[PlyCount "111"]
[EventDate "2023.10.20"]
[EventType "team-tourn"]
[EventCountry "GER"]
[SourceTitle "playchess.com"]
[Source "ChessBase"]
[SourceQuality "1"]
[TimeControl "40/6000+30:3000+30"]

{[%evp 37,111,4,8,0,8,0,10,0,31,35,44,41,41,37,54,46,40,43,126,141,135,127,139,139,212,209,206,205,227,220,222,221,215,232,236,235,267,261,275,269,268,272,260,228,314,265,287,278,288,267,307,300,343,343,345,334,326,291,314,306,491,484,724,718,726,718,679,666,954,954,932,929,896,890,926,911]} 1. e4 {[%emt 0:00:02]} c6 {[%emt 0:00:38]} 2. d4 {[%emt 0:00:11]} d5 {[%emt 0:00:04]} 3. exd5 {[%emt 0:00:03]} cxd5 {[%emt 0:00:07]} 4. Bd3 {[%emt 0:00:05]} Nf6 {[%emt 0:00:39]} 5. c3 {[%emt 0:00:10]} Bg4 {[%emt 0:00:15]} 6. Qb3 {[%emt 0:00:12]} Qc7 {[%emt 0:00:10]} 7. h3 {[%emt 0:00:21] B13: Caro-Kann: Exchange Variation and Panov-Botvinnik Attack.} Bh5 {[%emt 0:00:07]} 8. Ne2 {[%emt 0:02:14]} Nc6 {[%emt 0:06:34]} 9. Bf4 {[%emt 0:03:03]} Qd7 {[%emt 0:00:27]} 10. Nd2 {[%emt 0:01:20]} e6 {[%emt 0:01:19]} 11. O-O {[%emt 0:02:53]} Bd6 {[%emt 0:09:21]} 12. Bxd6 {[%emt 0:02:27]} Qxd6 {[%emt 0:02:06]} 13. Rfe1 {[%emt 0:00:54]} O-O {[%emt 0:04:41]} 14. Ng3 {[%emt 0:03:10]} Bg6 {[%emt 0:00:18]} 15. Bxg6 {[%emt 0:00:14]} hxg6 {[%emt 0:00:04]} 16. Nf3 {[%emt 0:00:17]} Rab8 {[%emt 0:03:17]} 17. a4 {[%emt 0:02:00]} Qf4 $146 {[%emt 0:07:35]} ({Predecessor:} 17... Rfc8 18. Ne5 Na5 19. Qb5 Qc7 20. Nf1 a6 21. Qe2 Nc4 22. Nxc4 Qxc4 23. Qxc4 Rxc4 {½-½ Pavic,F (2270)-Tica,S (2438) CRO Cup Vodice 2022 (3.6)}) 18. Re3 {[%emt 0:05:14]} Na5 {[%emt 0:05:10]} 19. Qc2 {[%emt 0:01:10]} Nc4 {[%emt 0:00:38]} 20. Ree1 {[%emt 0:03:25]} Rbc8 {[%emt 0:05:31]} 21. Ra2 {[%emt 0:02:58]} Rc7 {[%emt 0:09:14]} 22. a5 {[%emt 0:02:20]} g5 {[%emt 0:09:25]} 23. Ne2 {[%emt 0:05:40]} Qe4 {[%emt 0:01:30]} 24. Qc1 {[%emt 0:01:22]} g4 {[%emt 0:01:35]} 25. Ng5 {[%emt 0:01:48]} Qd3 {[%emt 0:05:03]} 26. hxg4 {[%emt 0:05:48]} Nxg4 {[%emt 0:01:57]} 27. Qf4 {[%emt 0:00:11]} Qd2 {[%emt 0:00:03]} (27... Qf5 $1 $14) 28. Qxd2 $1 $16 {[%emt 0:00:06]} Nxd2 {[%emt 0:00:03] [#]} 29. f3 $1 {[%emt 0:00:12]} Ne3 {[%emt 0:07:21] [#]} 30. b3 $1 {[%emt 0:00:42]} Ndf1 {[%emt 0:01:26]} (30... Nxb3 $16 {keeps fighting.} 31. Rb1 Nxa5 (31... f6 $2 32. Nxe6 Nxa5 33. Nxc7 $18)) 31. Rxf1 $18 {[%emt 0:02:29]} Nxf1 {[%emt 0:00:03]} 32. Kxf1 {[%emt 0:00:08]} Re8 {[%emt 0:00:03]} 33. Nh3 {[%emt 0:03:50]} f6 {[%emt 0:00:07]} 34. Nhf4 {[%emt 0:00:10]} Kf7 {[%emt 0:00:12]} 35. Kf2 {[%emt 0:01:14]} Rh8 {[%emt 0:00:05]} 36. Ra1 {[%emt 0:00:44]} Rcc8 {[%emt 0:00:38]} 37. Nd3 {[%emt 0:00:52]} Rc7 {[%emt 0:01:37]} 38. b4 {[%emt 0:02:49]} Rb8 {[%emt 0:01:00]} 39. Nc5 {[%emt 0:12:10]} Re8 {[%emt 0:00:35]} 40. f4 {[%emt 0:01:15]} g6 {[%emt 0:01:33]} 41. Rh1 {[%emt 0:54:09]} Kg7 {[%emt 0:50:09]} 42. Nd3 {[%emt 0:00:52]} Rcc8 {[%emt 0:00:34]} 43. Ke3 {[%emt 0:01:55]} Rc7 {[%emt 0:00:09]} 44. Kd2 {[%emt 0:02:24]} Rcc8 {[%emt 0:00:04]} 45. a6 {[%emt 0:05:11]} bxa6 {[%emt 0:01:08]} 46. Ra1 {[%emt 0:00:09]} Rc6 {[%emt 0:00:05]} 47. Nc5 {[%emt 0:00:13]} Rh8 {[%emt 0:02:38]} 48. Nxa6 {[%emt 0:00:52]} ({Don't take} 48. Rxa6 Rxa6 49. Nxa6 Kf7 $18) 48... Rh2 $2 {[%emt 0:00:03]} (48... Kf7 49. b5 (49. Nc5 a6 $18) 49... Rb6) 49. Nc5 $18 {[%emt 0:01:26]} Rxg2 {[%emt 0:00:05]} (49... Kf8 $142 50. b5 (50. Rxa7 Ke8 $18) 50... Rd6 51. Rxa7 Ke8) 50. Rxa7+ $18 {[%emt 0:00:51]} Kh6 {[%emt 0:00:01]} 51. Nd7 {[%emt 0:04:36]} g5 {[%emt 0:00:09]} 52. fxg5+ {[%emt 0:00:12]} ({Not} 52. Nxf6 gxf4 53. Kd3 (53. b5 Rc8 $16) 53... f3 $18) 52... Kxg5 {[%emt 0:00:23]} 53. b5 {[%emt 0:01:46]} Rc8 {[%emt 0:00:03]} 54. b6 {[%emt 0:00:18]} Rh8 {[%emt 0:00:04]} 55. Ra1 {[%emt 0:01:16]} Rhh2 {[%emt 0:00:15]} 56. Re1 {[%emt 0:00:06]} 1-0

[Event "German Bundesliga 2023-24"]
[Site "Germany"]
[Date "2024.03.16"]
[Round "12.9"]
[White "Bluebaum, Matthias"]
[Black "Petkidis, Anthony"]
[Result "1-0"]
[ECO "A13"]
[WhiteElo "2668"]
[BlackElo "2429"]
[Annotator "TA"]
[PlyCount "83"]
[EventDate "2023.10.20"]
[EventType "team-tourn"]
[EventCountry "GER"]
[SourceTitle "playchess.com"]
[Source "ChessBase"]
[SourceQuality "1"]
[TimeControl "40/6000+30:3000+30"]

{[%evp 9,83,11,21,16,14,25,18,14,11,10,12,12,7,4,36,12,17,5,26,0,44,37,72,52,53,53,72,57,60,48,77,43,52,52,74,54,66,65,64,56,108,107,110,105,121,114,149,163,207,203,220,235,229,221,236,227,225,227,235,240,259,256,246,249,323,316,357,350,372,363,504,469,462,369,443,439]} 1. c4 {[%emt 0:00:07]} Nf6 {[%emt 0:00:18]} 2. Nf3 {[%emt 0:00:17]} e6 {[%emt 0:00:15]} 3. b3 {[%emt 0:00:17]} d5 {[%emt 0:01:12]} 4. Bb2 {[%emt 0:00:13]} c5 {[%emt 0:03:05]} 5. cxd5 {[%emt 0:00:22]} exd5 {[%emt 0:01:00]} 6. g3 {[%emt 0:00:11]} Nc6 {[%emt 0:03:49]} 7. Bg2 {[%emt 0:00:07]} d4 {[%emt 0:02:51]} 8. O-O {[%emt 0:00:22] Die Stellung ist ausgeglichen.} Be7 {[%emt 0:00:20]} 9. Na3 {[%emt 0:00:06]} O-O {[%emt 0:00:36]} 10. Nc4 {[%emt 0:00:12]} Be6 {[%emt 0:04:50]} 11. e3 {[%emt 0:00:56][%cal Be2e3,Be3d4][%mdl 32]} Rc8 {[%emt 0:13:13]} 12. Nce5 {[%emt 0:00:56]} Nxe5 {[%emt 0:16:23]} 13. Nxe5 {[%emt 0:01:16]} Bd5 {[%emt 0:00:16]} 14. Nf3 {[%emt 0:14:00]} Qb6 {[%emt 0:13:04]} (14... Ne4 $5 {[%cal Re7f6]}) 15. exd4 {[%emt 0:08:28]} c4 {[%emt 0:09:07][%cal Rc4b3]} 16. Ne5 {[%emt 0:02:18] Droht Bxd5 und aus.} Bxg2 {[%emt 0:00:55]} 17. Kxg2 {[%emt 0:00:23]} Rfd8 {[%emt 0:02:03]} 18. Qf3 {[%emt 0:08:38]} ({Schlechter ist} 18. Nxc4 Rxc4 19. bxc4 Qxb2 $17) 18... cxb3 {[%emt 0:03:02]} 19. axb3 {[%emt 0:00:19]} a6 $1 {[%emt 0:03:58]} 20. Rfe1 {[%emt 0:03:20]} Bb4 {[%emt 0:02:06]} 21. Rac1 {[%emt 0:07:58]} Qb5 {[%emt 0:03:29]} 22. Nc4 {[%emt 0:12:14][%cal Be5c4,Bc4b6,Bb6a4,Ba4c5][%mdl 32] Und Re5 würde nun gewinnen.} Qd5 {[%emt 0:10:10]} 23. Nb6 {[%emt 0:01:34][%csl LRc8,LRd5]} Qxf3+ {[%emt 0:00:49]} 24. Kxf3 {[%emt 0:00:02]} Rxc1 {[%emt 0:00:53] Weiß behält die Zügel nun fest in der Hand.} (24... Rb8 $14 25. Bc3 Bf8) 25. Rxc1 $16 {[%emt 0:00:04]} Ba5 {[%emt 0:03:29]} 26. Na4 {[%emt 0:05:17]} Bxd2 {[%emt 0:06:42]} 27. Rc7 {[%emt 0:01:00]} Rb8 {[%emt 0:02:21] [#]} 28. Nc5 $1 {[%emt 0:02:18] Weiß steht aktiver.} Nd5 {[%emt 0:00:23]} 29. Rd7 {[%emt 0:02:25]} Nb6 {[%emt 0:01:56]} 30. Rxb7 {[%emt 0:03:40]} Rxb7 {[%emt 0:00:10]} 31. Nxb7 $18 {[%emt 0:00:02][%mdl 4096] Endspiel. KBN-KBN} a5 {[%emt 0:01:33]} 32. Nc5 {[%emt 0:03:20]} f5 {[%emt 0:01:03]} 33. Ke2 {[%emt 0:00:06]} Bb4 {[%emt 0:00:21]} 34. Kd3 {[%emt 0:00:04]} Kf7 {[%emt 0:00:44]} 35. Bc3 {[%emt 0:00:35]} Bxc3 {[%emt 0:00:45]} 36. Kxc3 {[%emt 0:00:02] KN-KN} g5 {[%emt 0:00:33][%cal Bg7g5,Bg5g4][%mdl 32]} 37. Na4 {[%emt 0:01:05]} Nd5+ {[%emt 0:00:25]} 38. Kc4 {[%emt 0:00:03]} Nf6 {[%emt 0:00:45]} 39. f3 {[%emt 0:07:12][%cal Bf2f3,Bf3f4][%mdl 32] Wehrt Ng4 ab} g4 {[%emt 0:00:17] [#]} 40. f4 {[%emt 0:00:22]} ({Weniger gut wäre} 40. fxg4 Nxg4 41. d5 Nxh2 $16) 40... Ne4 {[%emt 0:00:12]} 41. Kd3 {[%emt 0:54:55] Verhindert Nd2.} Ke6 {[%emt 0:07:45]} 42. Nc3 {[%emt 0:00:00] Gewichteter Fehlerwert: Weiß=0.07 (makellos) /Schwarz=0.21 (präzise) .  Fehler:       	---       	Schwarz=1     Ungenau:       	Weiß=2     	Schwarz=5     OK:         	Weiß=20    	Schwarz=11    Bester:       	Weiß=1     	Schwarz=1     Stark:        	Weiß=1     	Schwarz=1} 1-0

[Event "German Bundesliga 2023-24"]
[Site "Germany"]
[Date "2024.03.16"]
[Round "12.9"]
[White "Livaic, Leon"]
[Black "Yuffa, Daniil"]
[Result "1/2-1/2"]
[ECO "A01"]
[WhiteElo "2549"]
[BlackElo "2601"]
[Annotator "TA"]
[PlyCount "51"]
[EventDate "2023.10.20"]
[EventType "team-tourn"]
[EventCountry "GER"]
[SourceTitle "playchess.com"]
[Source "ChessBase"]
[SourceQuality "1"]
[TimeControl "40/6000+30:3000+30"]

{[%evp 9,51,18,30,33,62,56,66,66,60,41,47,41,39,37,34,34,35,21,49,0,9,4,20,0,0,0,0,6,10,8,12,11,9,12,10,10,18,10,26,27,28,0,0,0]} 1. b3 {[%emt 0:00:27]} e5 {[%emt 0:00:53]} 2. Bb2 {[%emt 0:00:08]} Nc6 {[%emt 0:01:35]} 3. e3 {[%emt 0:00:41]} d6 {[%emt 0:01:54]} 4. Nf3 {[%emt 0:01:24]} g6 {[%emt 0:01:46]} 5. d4 {[%emt 0:01:44]} Bg7 {[%emt 0:00:13]} 6. dxe5 {[%emt 0:01:43]} Nge7 {[%emt 0:00:45]} 7. Nc3 {[%emt 0:07:23]} Nxe5 {[%emt 0:01:11]} 8. Nxe5 {[%emt 0:07:51] Weiß steht etwas besser.} Bxe5 {[%emt 0:00:13]} 9. Qd2 {[%emt 0:00:46]} Be6 {[%emt 0:07:38][%cal Oe7d5]} 10. O-O-O {[%emt 0:07:38]} Qd7 {[%emt 0:04:42]} 11. f4 {[%emt 0:17:23]} Bg7 {[%emt 0:01:41]} 12. e4 {[%emt 0:00:32][%cal Oe4e5]} O-O-O {[%emt 0:03:54]} 13. Qf2 {[%emt 0:06:10]} Kb8 {[%emt 0:05:49]} 14. Nb5 {[%emt 0:14:57]} Bxb2+ {[%emt 0:00:16]} 15. Kxb2 {[%emt 0:00:03]} Nc6 {[%emt 0:04:46]} 16. Nd4 {[%emt 0:05:26]} Nxd4 {[%emt 0:02:50]} 17. Qxd4 {[%emt 0:00:06]} Qe7 {[%emt 0:03:07]} 18. Bd3 {[%emt 0:02:32]} h5 {[%emt 0:13:31]} 19. Rde1 {[%emt 0:05:52]} Bd7 {[%emt 0:06:28]} 20. h4 {[%emt 0:04:26]} Rhe8 {[%emt 0:02:25]} 21. g3 {[%emt 0:00:40]} Bg4 {[%emt 0:02:04]} 22. Qc3 {[%emt 0:07:04]} Bd7 {[%emt 0:06:53]} 23. a4 {[%emt 0:01:45]} Qf8 {[%emt 0:01:31]} 24. Rhf1 {[%emt 0:01:47]} f5 {[%emt 0:03:52]} 25. Re2 {[%emt 0:04:29]} fxe4 {[%emt 0:04:48]} 26. Rxe4 {[%emt 0:00:21] Gewichteter Fehlerwert: Weiß=0.09 (makellos) /Schwarz=0.04 (makellos) .  Ungenau:       	Weiß=2     	Schwarz=1     OK:         	Weiß=6     	Schwarz=11    Bester:       	---       	Schwarz=2} 1/2-1/2

[Event "German Bundesliga 2023-24"]
[Site "Germany"]
[Date "2024.03.16"]
[Round "12.10"]
[White "Teclaf, Pawel"]
[Black "Kraemer, Martin"]
[Result "1/2-1/2"]
[ECO "D27"]
[WhiteElo "2571"]
[BlackElo "2579"]
[Annotator "TA"]
[PlyCount "63"]
[EventDate "2023.10.20"]
[EventType "team-tourn"]
[EventCountry "GER"]
[SourceTitle "playchess.com"]
[Source "ChessBase"]
[SourceQuality "1"]
[TimeControl "40/6000+30:3000+30"]

{[%evp 11,63,16,32,12,27,23,9,11,7,0,0,14,10,15,14,0,11,21,23,16,31,20,19,18,17,10,24,8,10,10,20,9,9,7,4,0,0,0,0,0,0,0,0,0,0,0,0,0,0,0,0,0,0,0]} 1. Nf3 {[%emt 16:29:20]} d5 {[%emt 0:00:06]} 2. e3 {[%emt 0:00:07]} Nf6 {[%emt 0:00:20]} 3. d4 {[%emt 0:00:09]} c5 {[%emt 0:03:55]} 4. c4 {[%emt 0:02:40]} dxc4 {[%emt 0:05:17]} 5. Bxc4 {[%emt 0:01:28]} e6 {[%emt 0:00:01]} 6. O-O {[%emt 0:00:23]} a6 {[%emt 0:00:04]} 7. Be2 {[%emt 0:02:33]} Nbd7 {[%emt 0:00:47]} 8. b3 {[%emt 0:01:10]} b6 {[%emt 0:01:16]} 9. Bb2 {[%emt 0:00:56]} Bb7 {[%emt 0:00:30]} 10. Nbd2 {[%emt 0:00:04]} Be7 {[%emt 0:00:37]} 11. Nc4 {[%emt 0:14:25]} O-O {[%emt 0:09:21]} 12. dxc5 {[%emt 0:06:57]} Bxc5 {[%emt 0:00:26]} 13. a3 {[%emt 0:00:26]} a5 {[%emt 0:23:33]} 14. Nd4 {[%emt 0:12:54]} Qe7 {[%emt 0:02:32]} 15. Bf3 {[%emt 0:06:02]} Bxf3 {[%emt 0:06:58]} 16. Qxf3 {[%emt 0:10:45]} Bxd4 {[%emt 0:00:08]} 17. Bxd4 {[%emt 0:00:05][%cal Oa3a4]} b5 {[%emt 0:00:11]} 18. Ne5 {[%emt 0:01:30]} Nxe5 {[%emt 0:02:46]} 19. Bxe5 {[%emt 0:02:29]} Rfd8 {[%emt 0:18:44] The position is equal.} 20. Rfd1 {[%emt 0:12:56]} Rac8 {[%emt 0:11:19]} 21. h3 {[%emt 0:10:22]} Rxd1+ {[%emt 0:07:47]} (21... h6 {simplifies} 22. Bb2 Rc2 23. Bxf6 Rxd1+ 24. Rxd1 Qxf6 25. Qxf6 gxf6 26. Rd8+ Kg7) 22. Rxd1 {[%emt 0:00:30]} Qxa3 {[%emt 0:00:51]} 23. Bxf6 {[%emt 0:01:23]} gxf6 {[%emt 0:00:03]} 24. Qxf6 $11 {[%emt 0:00:10][%mdl 4096] [#] Endgame. And now Qg5+ would win. KQR-KQR} Rc1 $1 {[%emt 0:00:28]} (24... Qxb3 25. Rd4 Qc2 (25... Qb1+ $2 26. Kh2 $18) 26. Rg4+ (26. Qg5+ Kf8 $18) 26... Kf8 27. Rg7 Qb1+ 28. Kh2 $18) 25. Qg5+ {[%emt 0:01:32]} Kf8 {[%emt 0:00:50]} 26. Qd8+ {[%emt 0:00:04]} Kg7 {[%emt 0:00:04]} 27. Rxc1 {[%emt 0:01:05]} Qxc1+ {[%emt 0:00:02]} 28. Kh2 {[%emt 0:00:05]} Qc2 {[%emt 0:04:41][%csl LRb3,LRf2]} 29. Qg5+ {[%emt 0:01:12]} Kf8 {[%emt 0:00:05]} 30. Qd8+ {[%emt 0:06:50]} Kg7 {[%emt 0:00:09]} 31. Qg5+ {[%emt 0:01:24]} Kf8 {[%emt 0:00:05]} 32. Qd8+ {[%emt 0:02:55] A balanced but interesting game.   Weighted Error Value: White=0.02 (flawless) /Black=0.03 (flawless) .  OK:         	White=8     	Black=11     Best:        	White=1     	---        Strong:       	---       	Black=1} 1/2-1/2

[Event "German Bundesliga 2023-24"]
[Site "Germany"]
[Date "2024.03.16"]
[Round "12.10"]
[White "Shengelia, David"]
[Black "Dardha, Daniel"]
[Result "0-1"]
[ECO "D30"]
[WhiteElo "2494"]
[BlackElo "2575"]
[Annotator "RC"]
[PlyCount "201"]
[EventDate "2023.10.20"]
[EventType "team-tourn"]
[EventCountry "GER"]
[SourceTitle "playchess.com"]
[Source "ChessBase"]
[SourceQuality "1"]
[TimeControl "40/6000+30:3000+30"]

1. d4 {[%emt 0:00:05]} d5 {[%emt 0:00:12]} 2. Nf3 {[%emt 0:00:06]} Nf6 {[%emt 0:00:20]} 3. c4 {[%emt 0:00:24]} e6 {[%emt 0:01:30]} 4. e3 {[%emt 0:00:23]} a6 {[%emt 0:03:36]} 5. b3 {[%emt 0:03:50]} dxc4 {[%emt 0:07:28]} 6. bxc4 {[%emt 0:00:27]} c5 {[%emt 0:00:09]} 7. Bd3 {[%emt 0:04:36]} cxd4 {[%emt 0:07:55]} 8. exd4 {[%emt 0:00:23]} Bb4+ {[%emt 0:00:05]} 9. Bd2 {[%emt 0:06:06]} Bxd2+ {[%emt 0:01:01]} 10. Nbxd2 {[%emt 0:00:15]} Nc6 {[%emt 0:00:18]} 11. Nb3 {[%emt 0:00:18]} O-O {[%emt 0:00:08]} 12. O-O {[%emt 0:00:08]} b6 {[%emt 0:00:22]} 13. Qd2 {[%emt 0:08:09]} Bb7 {[%emt 0:02:12]} 14. Rfd1 {[%emt 0:05:43]} Ne7 {[%emt 0:01:00]} 15. Ne5 {[%emt 0:05:10]} Ng6 {[%emt 0:01:23]} 16. Rac1 {[%emt 0:07:19]} Qc7 {[%emt 0:04:36]} 17. Bxg6 {[%emt 0:20:24]} hxg6 {[%emt 0:02:22]} 18. Qf4 {[%emt 0:01:59]} Qe7 {[%emt 0:07:53]} 19. Qh4 {[%emt 0:12:04]} Rfe8 {[%emt 0:02:42]} 20. c5 {[%emt 0:00:37]} Nd5 {[%emt 0:02:48]} 21. Qxe7 {[%emt 0:01:32]} Rxe7 {[%emt 0:00:31]} 22. cxb6 {[%emt 0:05:06]} Nxb6 {[%emt 0:00:36]} 23. Nc5 {[%emt 0:00:10]} Bd5 {[%emt 0:01:47]} 24. a4 {[%emt 0:00:13]} a5 {[%emt 0:01:47]} 25. f3 {[%emt 0:04:42]} g5 {[%emt 0:05:26]} 26. Rb1 {[%emt 0:00:52]} Nc8 {[%emt 0:00:39]} 27. Kf2 {[%emt 0:08:02]} Rc7 {[%emt 0:01:08]} 28. Ned7 {[%emt 0:03:31]} Ne7 {[%emt 0:01:52]} 29. Nb6 {[%emt 0:03:08]} Rd8 {[%emt 0:00:18]} 30. Rb5 {[%emt 0:01:09]} Ra7 {[%emt 0:13:02]} 31. Nxd5 {[%emt 0:02:03]} Rxd5 {[%emt 0:01:19]} 32. g4 {[%emt 0:02:07]} Ng6 {[%emt 0:05:09]} 33. Ne4 {[%emt 0:02:03]} Nf4 {[%emt 0:03:45]} 34. Rxd5 {[%emt 0:03:26]} exd5 {[%emt 0:00:05]} 35. Nc5 {[%emt 0:00:08]} Ra8 {[%emt 0:01:23]} 36. Rb1 {[%emt 0:01:00]} Re8 {[%emt 0:00:19]} 37. Rb5 {[%emt 0:00:39]} Re2+ {[%emt 0:00:53]} 38. Kf1 {[%emt 0:00:02]} Rd2 {[%emt 0:01:16]} 39. Nb3 {[%emt 0:01:06]} Rd3 {[%emt 0:10:48]} 40. Kf2 {[%emt 0:00:02]} Kh7 {[%emt 0:03:19]} 41. Kg3 {[%emt 0:12:20]} f6 {[%emt 0:04:29]} 42. Kf2 {[%emt 0:02:57]} Kh6 {[%emt 0:02:18]} 43. Rb7 {[%emt 0:02:13]} Kh7 {[%emt 0:05:24]} 44. Rb5 {[%emt 0:03:52]} Rc3 {[%emt 0:00:52]} 45. Nc5 {[%emt 0:20:29]} Rc2+ {[%emt 0:02:05]} 46. Kf1 {[%emt 0:03:36]} Rxh2 {[%emt 0:01:26]} 47. Rxa5 {[%emt 0:00:21]} Rd2 {[%emt 0:00:09]} 48. Rb5 {[%emt 0:04:10]} Rxd4 {[%emt 0:02:35]} 49. a5 {[%emt 0:00:02]} Rd1+ {[%emt 0:00:48]} 50. Kf2 {[%emt 0:00:01]} d4 {[%emt 0:01:15]} 51. a6 {[%emt 0:00:03]} Rd2+ {[%emt 0:01:06]} 52. Kf1 {[%emt 0:03:48]} Ra2 {[%emt 0:04:29]} 53. Rb4 {[%emt 0:00:26]} d3 {[%emt 0:02:28]} 54. Rd4 {[%emt 0:00:03]} d2 {[%emt 0:01:06]} 55. Nb3 {[%emt 0:00:02]} Rxa6 {[%emt 0:01:48]} 56. Rxd2 {[%emt 0:00:40]} Ra3 {[%emt 0:00:44]} 57. Nd4 {[%emt 0:00:11]} g6 {[%emt 0:01:14]} 58. Kf2 {[%emt 0:00:23]} Kg7 {[%emt 0:01:50]} 59. Ne2 {[%emt 0:01:55]} Nd3+ {[%emt 0:00:17]} 60. Kg3 {[%emt 0:00:28]} Ne5 {[%emt 0:01:52]} 61. Nd4 {[%emt 0:01:04]} Kf7 {[%emt 0:00:41]} 62. Kg2 {[%emt 0:00:27]} Nc4 {[%emt 0:01:15]} 63. Re2 {[%emt 0:00:37]} Rd3 {[%emt 0:00:08]} 64. Nc2 {[%emt 0:01:01]} Ne5 {[%emt 0:03:04]} 65. Ne1 {[%emt 0:00:02]} Rb3 {[%emt 0:00:45]} 66. Kf2 {[%emt 0:00:06]} Ke6 {[%emt 0:00:49]} 67. Re3 {[%emt 0:00:29]} Rb2+ {[%emt 0:01:05]} 68. Re2 {[%emt 0:00:08]} Rxe2+ {[%emt 0:00:58]} 69. Kxe2 {[%emt 0:00:01]} f5 {[%emt 0:01:12]} 70. gxf5+ {[%emt 0:00:28]} gxf5 {[%emt 0:00:02]} 71. Nc2 {[%emt 0:01:18]} Nc6 {[%emt 0:02:34]} 72. Ne1 {[%emt 0:01:36]} Nb4 {[%emt 0:00:39]} 73. Ke3 {[%emt 0:00:36]} Kd5 {[%emt 0:00:34]} 74. Ng2 {[%emt 0:00:55]} Nc6 {[%emt 0:00:16]} 75. f4 {[%emt 0:00:53]} g4 {[%emt 0:00:02]} 76. Nh4 {[%emt 0:00:13]} Ne7 {[%emt 0:00:20]} 77. Kd3 {[%emt 0:00:19]} Ke6 {[%emt 0:00:10]} 78. Ng2 {[%emt 0:00:33]} Ng6 {[%emt 0:00:55]} 79. Kd4 {[%emt 0:00:29]} Kd6 {[%emt 0:00:06]} 80. Ne3 {[%emt 0:00:24]} Nh4 {[%emt 0:00:21]} 81. Nf1 {[%emt 0:00:29]} Ng2 {[%emt 0:00:49]} 82. Ng3 {[%emt 0:00:26]} Ke6 {[%emt 0:00:12]} 83. Nh5 {[%emt 0:01:18]} Nh4 {[%emt 0:02:34]} 84. Ke3 {[%emt 0:00:35]} Kd5 {[%emt 0:00:55]} 85. Kf2 {[%emt 0:00:32]} Nf3 {[%emt 0:01:33]} 86. Ng3 {[%emt 0:00:28]} Ke6 {[%emt 0:01:57]} 87. Nf1 {[%emt 0:00:09]} Kd5 {[%emt 0:00:40]} 88. Ng3 {[%emt 0:00:24]} Nd4 {[%emt 0:00:04]} 89. Ke3 {[%emt 0:00:18]} Kc4 {[%emt 0:00:10]} 90. Nh5 {[%emt 0:00:24]} Nc6 {[%emt 0:01:04]} 91. Kf2 {[%emt 0:00:54]} Kd5 {[%emt 0:00:40]} 92. Ng3 {[%emt 0:00:25]} Ne7 {[%emt 0:00:09]} 93. Nf1 {[%emt 0:00:56]} Ke4 {[%emt 0:00:43]} 94. Kg3 {[%emt 0:00:02]} Nd5 {[%emt 0:00:14]} 95. Nd2+ {[%emt 0:00:11]} Kd3 {[%emt 0:01:05]} 96. Nb3 {[%emt 0:00:29]} Nc3 {[%emt 0:01:30]} 97. Nc5+ {[%emt 0:00:54]} Ke3 {[%emt 0:00:05]} 98. Ne6 {[%emt 0:00:54]} Ne2+ {[%emt 0:00:08]} 99. Kh4 {[%emt 0:00:05]} g3 {[%emt 0:00:19]} 100. Ng5 {[%emt 0:00:35]} g2 {[%emt 0:00:09]} 101. Nh3 {[%emt 0:00:16]} 0-1